Workbook

Sheet Form 4
A2: Table A.1.1 | J2: STANDARD FORM 4 | R2: BY: | S2: EPF / FKR
A3: Rancho-Fort Apache Storm Drain | J3: HYDROLOGIC CRITERIA AND DRAINAGE DESIGN MANUAL | R3: DATE: | S3: 2013-03-21
A4: LBG Project No.: CCB 1126 | J4: TIME OF CONCENTRATION
J5: FUTURE CONDITIONS | R5: CHKD BY: | S5: JSD
R6: DATE: | S6: 2013-04-26
A8: SUB-BASIN | G8: INITIAL / OVERLAND | J8: TRAVEL TIME | P8: Tc | Q8: Tc | R8: Tlag | S8: REMARKS
A9: DATA | G9: TIME (Ti) | J9: (Tt) | Q9: Check
G10: Lo INITIAL | H10: S | J10: TRAVEL | M10: V1 | N10: V2 | R10: Tlag=
A11: BASIN | B11: DEV./UN. | C11: CN | D11: K | E11: AREA | F11: AREA | G11: LENGTH | H11: SLOPE | I11: Ti | J11: LENGTH | K11: Elevation | L11: SLOPE | M11: VELOCITY | N11: VELOCITY | O11: Tt | R11: 0.6Tc/60
B12: (D or U) | E12: Ac | F12: (mi2) | G12: (ft) | H12: % | I12: (min) | J12: (ft) | K12: Drop | L12: % | M12: (ft/s) | N12: (ft/s) | O12: (min) | P12: (min) | Q12: (min) | R12: (hours)
A13: (1) | D13: (2) | E13: (3) | G13: (4) | H13: (5) | I13: (6) | J13: (7) | L13: (8) | M13: (9a) | N13: (9b) | O13: (10) | P13: (13) | Q13: (14)
A14: NW53-CA | B14: D | C14: =VLOOKUP(A14,[1]Calcs!$A$6:$L$897,12,FALSE) -> 79.1323351 | D14: =0.0132*C14-0.39 -> 0.6545468233 | E14: =VLOOKUP(A14,[1]Calcs!$A$6:$L$897,7,FALSE) -> 41.206 | F14: =E14/640 -> 0.064384375 | G14: 125 | H14: 2 | I14: =(1.8*(1.1-D14)*G14^0.5)/(H14^0.33333) -> 7.115202154 | J14: 3000 | L14: =100*9*10/3130 -> 2.875399361 | M14: =IF(B14="D",20.2*SQRT(L14/100),14.8*SQRT(L14/100)) -> 3.425314519 | N14: =IF(B14="D",30.6*SQRT(L14/100),29.4*SQRT(L14/100)) -> 5.188842786 | O14: =IF(J14>500,500/(60*M14)+(J14-500)/(60*N14),(J14/(60*M14))) -> 10.46291655 | P14: =IF((I14+O14)>5,(I14+O14),5) -> 17.5781187 | Q14: =IF(B14="D",+(G14+J14)/180+10,"N/A") -> 27.36111111 | R14: =IF(Q14>P14,P14*0.6/60,Q14*0.6/60) -> 0.175781187 | S14: PB = 2.85"
A15: NW53-CB | B15: D | C15: =VLOOKUP(A15,[1]Calcs!$A$6:$L$897,12,FALSE) -> 79.75696694 | D15: 0.6627919637 | E15: =VLOOKUP(A15,[1]Calcs!$A$6:$L$897,7,FALSE) -> 81.659628 | F15: 0.1275931687 | G15: 125 | H15: 2 | I15: 6.983502924 | J15: =3950-125 -> 3825 | L15: =100*10*10/3950 -> 2.53164557 | M15: 3.214051428 | N15: 4.868810579 | O15: 13.97475378 | P15: 20.9582567 | Q15: 31.94444444 | R15: 0.209582567 | S15: PB = 2.85"
A16: NW53-CC | B16: D | C16: =VLOOKUP(A16,[1]Calcs!$A$6:$L$897,12,FALSE) -> 87.23753504 | D16: =0.0132*C16-0.39 -> 0.7615354625 | E16: =VLOOKUP(A16,[1]Calcs!$A$6:$L$897,7,FALSE) -> 63.498 | F16: =E16/640 -> 0.099215625 | G16: 125 | H16: 2 | I16: =(1.8*(1.1-D16)*G16^0.5)/(H16^0.33333) -> 5.406277768 | J16: =3180-125 -> 3055 | L16: =100*5.5*10/3180 -> 1.729559748 | M16: =IF(B16="D",20.2*SQRT(L16/100),14.8*SQRT(L16/100)) -> 2.656557095 | N16: =IF(B16="D",30.6*SQRT(L16/100),29.4*SQRT(L16/100)) -> 4.02428946 | O16: =IF(J16>500,500/(60*M16)+(J16-500)/(60*N16),(J16/(60*M16))) -> 13.71847037 | P16: =IF((I16+O16)>5,(I16+O16),5) -> 19.12474814 | Q16: =IF(B16="D",+(G16+J16)/180+10,"N/A") -> 27.66666667 | R16: =IF(Q16>P16,P16*0.6/60,Q16*0.6/60) -> 0.1912474814 | S16: PB = 2.85"
A17: NW66-CA | B17: D | C17: =VLOOKUP(A17,[1]Calcs!$A$6:$L$897,12,FALSE) -> 84 | D17: 0.7188 | E17: =VLOOKUP(A17,[1]Calcs!$A$6:$L$897,7,FALSE) -> 4.099999 | F17: 0.006406248438 | G17: 125 | H17: 2 | I17: 6.088889254 | J17: 2500 | L17: 2.04 | M17: 2.885137085 | N17: 4.370554198 | O17: 10.51516435 | P17: 16.60405361 | Q17: 24.58333333 | R17: 0.1660405361 | S17: PB = 2.91"
A18: NW66-CB | B18: D | C18: =VLOOKUP(A18,[1]Calcs!$A$6:$L$897,12,FALSE) -> 77.53846178 | D18: 0.6335076954 | E18: =VLOOKUP(A18,[1]Calcs!$A$6:$L$897,7,FALSE) -> 6.499999 | F18: 0.01015624844 | G18: 125 | H18: 2 | I18: 7.451259131 | J18: 1415.64 | L18: 2.75493 | M18: 3.352792325 | N18: 5.078982432 | O18: 5.490160562 | P18: 12.94141969 | Q18: 18.55911111 | R18: 0.1294141969 | S18: PB = 2.91"
A19: NW66-CC | B19: D | C19: =VLOOKUP(A19,[1]Calcs!$A$6:$L$897,12,FALSE) -> 84.06666667 | D19: 0.71968 | E19: =VLOOKUP(A19,[1]Calcs!$A$6:$L$897,7,FALSE) -> 6 | F19: 0.009375 | G19: 125 | H19: 2 | I19: 6.074833057 | J19: 1504 | L19: 2.6599 | M19: 3.294458371 | N19: 4.990615156 | O19: 5.882460336 | P19: 11.95729339 | Q19: 19.05 | R19: 0.1195729339 | S19: PB = 2.87"
A20: NW66-CD | B20: D | C20: =VLOOKUP(A20,[1]Calcs!$A$6:$L$897,12,FALSE) -> 84.09523811 | D20: 0.720057143 | E20: =VLOOKUP(A20,[1]Calcs!$A$6:$L$897,7,FALSE) -> 8.399999 | F20: 0.01312499844 | G20: 125 | H20: 2 | I20: 6.06880897 | J20: 1511 | L20: 2.59 | M20: 3.250882342 | N20: 4.924603943 | O20: 5.985001579 | P20: 12.05381055 | Q20: 19.08888889 | R20: 0.1205381055 | S20: PB = 2.87"
A21: NW66-CE | B21: D | C21: =VLOOKUP(A21,[1]Calcs!$A$6:$L$897,12,FALSE) -> 84 | D21: 0.7188 | E21: =VLOOKUP(A21,[1]Calcs!$A$6:$L$897,7,FALSE) -> 6.599999 | F21: 0.01031249844 | G21: 125 | H21: 2 | I21: 6.088889254 | J21: 1524 | L21: 2.59 | M21: 3.250882342 | N21: 4.924603943 | O21: 6.028998349 | P21: 12.1178876 | Q21: 19.16111111 | R21: 0.121178876 | S21: PB = 2.86"
A22: NW66-CF | B22: D | C22: =VLOOKUP(A22,[1]Calcs!$A$6:$L$897,12,FALSE) -> 84 | D22: 0.7188 | E22: =VLOOKUP(A22,[1]Calcs!$A$6:$L$897,7,FALSE) -> 7.9 | F22: 0.01234375 | G22: 125 | H22: 2 | I22: 6.088889254 | J22: 1493 | L22: 2.5499 | M22: 3.225618074 | N22: 4.88633233 | O22: 5.970482645 | P22: 12.0593719 | Q22: 18.98888889 | R22: 0.120593719 | S22: PB = 2.86"
A23: NW66-CG | B23: D | C23: =VLOOKUP(A23,[1]Calcs!$A$6:$L$897,12,FALSE) -> 84.0597015 | D23: 0.7195880598 | E23: =VLOOKUP(A23,[1]Calcs!$A$6:$L$897,7,FALSE) -> 6.699999 | F23: 0.01046874844 | G23: 125 | H23: 2 | I23: 6.076301613 | J23: 1273 | L23: 2.83 | M23: 3.398165976 | N23: 5.147716775 | O23: 4.955030904 | P23: 11.03133252 | Q23: 17.76666667 | R23: 0.1103133252 | S23: PB = 2.86"
A24: NW66-CI1 | B24: D | C24: =VLOOKUP(A24,[1]Calcs!$A$6:$L$897,12,FALSE) -> 84.07185629 | D24: 0.7197485031 | E24: =VLOOKUP(A24,[1]Calcs!$A$6:$L$897,7,FALSE) -> 16.699999 | F24: 0.02609374844 | G24: 125 | H24: 2 | I24: 6.073738861 | J24: 1551 | L24: 2.51450677 | M24: 3.203153668 | N24: 4.852302092 | O24: 6.211573079 | P24: 12.28531194 | Q24: 19.31111111 | R24: 0.1228531194 | S24: PB = 2.85"
A25: NW66-CI2 | B25: D | C25: =VLOOKUP(A25,[1]Calcs!$A$6:$L$897,12,FALSE) -> 84 | D25: 0.7188 | E25: =VLOOKUP(A25,[1]Calcs!$A$6:$L$897,7,FALSE) -> 15.399999 | F25: 0.02406249844 | G25: 125 | H25: 2 | I25: 6.088889254 | J25: 1878 | L25: 1.331203408 | M25: 2.330631328 | N25: 3.530560328 | O25: 10.08067438 | P25: 16.16956363 | Q25: 21.12777778 | R25: 0.1616956363 | S25: PB = 2.85"
A26: NW66-CI3 | B26: D | C26: =VLOOKUP(A26,[1]Calcs!$A$6:$L$897,12,FALSE) -> 84.07792208 | D26: 0.7198285714 | E26: =VLOOKUP(A26,[1]Calcs!$A$6:$L$897,7,FALSE) -> 15.4 | F26: 0.0240625 | G26: 125 | H26: 2 | I26: 6.072459933 | J26: 2570 | L26: 2.256809339 | M26: 3.034581491 | N26: 4.596940278 | O26: 10.25111477 | P26: 16.3235747 | Q26: 24.97222222 | R26: 0.163235747 | S26: PB = 2.85"
A27: NW66-CJ1 | B27: D | C27: =VLOOKUP(A27,[1]Calcs!$A$6:$L$897,12,FALSE) -> 86.36363744 | D27: 0.7500000142 | E27: =VLOOKUP(A27,[1]Calcs!$A$6:$L$897,7,FALSE) -> 2.199999 | F27: 0.003437498437 | G27: 125 | H27: 2 | I27: 5.590532929 | J27: 1267 | L27: 2.1 | M27: 2.927258103 | N27: 4.434361284 | O27: 5.729595331 | P27: 11.32012826 | Q27: 17.73333333 | R27: 0.1132012826 | S27: PB = 2.85"
A28: NW66-CJ2 | B28: D | C28: =VLOOKUP(A28,[1]Calcs!$A$6:$L$897,12,FALSE) -> 84.03571429 | D28: 0.7192714286 | E28: =VLOOKUP(A28,[1]Calcs!$A$6:$L$897,7,FALSE) -> 11.2 | F28: 0.0175 | G28: 125 | H28: 2 | I28: 6.081359149 | J28: 1623 | L28: 2.341343192 | M28: 3.090892551 | N28: 4.682243171 | O28: 6.693464628 | P28: 12.77482378 | Q28: 19.71111111 | R28: 0.1277482378 | S28: PB = 2.85"
A29: NW66-CJ3 | B29: D | C29: =VLOOKUP(A29,[1]Calcs!$A$6:$L$897,12,FALSE) -> 84.25454545 | D29: 0.72216 | E29: =VLOOKUP(A29,[1]Calcs!$A$6:$L$897,7,FALSE) -> 11 | F29: 0.0171875 | G29: 125 | H29: 2 | I29: 6.035220136 | J29: 1610 | L29: 2.360248447 | M29: 3.10334622 | N29: 4.701108631 | O29: 6.620515461 | P29: 12.6557356 | Q29: 19.63888889 | R29: 0.126557356 | S29: PB = 2.85"
A30: NW66-CJ4 | B30: D | C30: =VLOOKUP(A30,[1]Calcs!$A$6:$L$897,12,FALSE) -> 84 | D30: 0.7188 | E30: =VLOOKUP(A30,[1]Calcs!$A$6:$L$897,7,FALSE) -> 3.799999 | F30: 0.005937498438 | G30: 125 | H30: 2 | I30: 6.088889254 | J30: 875 | L30: 2.285714286 | M30: 3.053952942 | N30: 4.62628515 | O30: 4.079679865 | P30: 10.16856912 | Q30: 15.55555556 | R30: 0.1016856912 | S30: PB = 2.85"
A31: NW66-CJ5 | B31: D | C31: =VLOOKUP(A31,[1]Calcs!$A$6:$L$897,12,FALSE) -> 84.12500002 | D31: 0.7204500003 | E31: =VLOOKUP(A31,[1]Calcs!$A$6:$L$897,7,FALSE) -> 6.399999 | F31: 0.009999998438 | G31: 125 | H31: 2 | I31: 6.06253388 | J31: 1375 | L31: 2.472727273 | M31: 3.176431388 | N31: 4.811821806 | O31: 5.654219297 | P31: 11.71675318 | Q31: 18.33333333 | R31: 0.1171675318 | S31: PB = 2.85"
A32: NW66-CJ6 | B32: D | C32: =VLOOKUP(A32,[1]Calcs!$A$6:$L$897,12,FALSE) -> 84 | D32: 0.7188 | E32: =VLOOKUP(A32,[1]Calcs!$A$6:$L$897,7,FALSE) -> 3.799999 | F32: 0.005937498438 | G32: 125 | H32: 2 | I32: 6.088889254 | J32: 851 | L32: 2.23266745 | M32: 3.018306854 | N32: 4.57228662 | O32: 4.040377149 | P32: 10.1292664 | Q32: 15.42222222 | R32: 0.101292664 | S32: PB = 2.85"
A33: NW77-CA | B33: D | C33: =VLOOKUP(A33,[1]Calcs!$A$6:$L$897,12,FALSE) -> 80.09464468 | D33: 0.6672493097 | E33: =VLOOKUP(A33,[1]Calcs!$A$6:$L$897,7,FALSE) -> 80.299994 | F33: 0.1254687406 | G33: 125 | H33: 2 | I33: 6.912305949 | J33: 3864 | L33: 2.69 | M33: 3.313046332 | N33: 5.018773157 | O33: 13.68669731 | P33: 20.59900325 | Q33: 32.16111111 | R33: 0.2059900325 | S33: PB = 2.98"
A34: NW77-CB | B34: D | C34: =VLOOKUP(A34,[1]Calcs!$A$6:$L$897,12,FALSE) -> 83.72845906 | D34: 0.7152156596 | E34: =VLOOKUP(A34,[1]Calcs!$A$6:$L$897,7,FALSE) -> 42.345501 | F34: 0.06616484531 | G34: 125 | H34: 2 | I34: 6.146141751 | J34: 2611 | L34: 2.22 | M34: 3.009732214 | N34: 4.559297314 | O34: 10.48562803 | P34: 16.63176978 | Q34: 25.2 | R34: 0.1663176978 | S34: PB = 2.91"
A35: NW77-CC | B35: D | C35: =VLOOKUP(A35,[1]Calcs!$A$6:$L$897,12,FALSE) -> 84.60869505 | D35: 0.7268347746 | E35: =VLOOKUP(A35,[1]Calcs!$A$6:$L$897,7,FALSE) -> 4.599998 | F35: 0.007187496875 | G35: 125 | H35: 2 | I35: 5.960550186 | J35: 1135.04 | L35: 2.81928 | M35: 3.391723767 | N35: 5.137957786 | O35: 4.516923522 | P35: 10.47747371 | Q35: 17.00022222 | R35: 0.1047747371 | S35: PB = 2.90"
A36: NW77-CD | B36: D | C36: =VLOOKUP(A36,[1]Calcs!$A$6:$L$897,12,FALSE) -> 86.02739726 | D36: 0.7455616438 | E36: =VLOOKUP(A36,[1]Calcs!$A$6:$L$897,7,FALSE) -> 7.3 | F36: 0.01140625 | G36: 125 | H36: 2 | I36: 5.661426805 | J36: 1636.81 | L36: 2.62707 | M36: 3.274064206 | N36: 4.959721026 | O36: 6.365397478 | P36: 12.02682428 | Q36: 19.78783333 | R36: 0.1202682428 | S36: PB = 2.90"
A37: NW77-CE | B37: D | C37: =VLOOKUP(A37,[1]Calcs!$A$6:$L$897,12,FALSE) -> 82.50549506 | D37: 0.6990725347 | E37: =VLOOKUP(A37,[1]Calcs!$A$6:$L$897,7,FALSE) -> 9.099998 | F37: 0.01421874688 | G37: 125 | H37: 2 | I37: 6.403995108 | J37: 1441.44 | L37: 2.84438 | M37: 3.406788539 | N37: 5.160778678 | O37: 5.486464506 | P37: 11.89045961 | Q37: 18.70244444 | R37: 0.1189045961 | S37: PB = 2.91"
A38: NW77-CF | B38: D | C38: =VLOOKUP(A38,[1]Calcs!$A$6:$L$897,12,FALSE) -> 84 | D38: 0.7188 | E38: =VLOOKUP(A38,[1]Calcs!$A$6:$L$897,7,FALSE) -> 3.7 | F38: 0.00578125 | G38: 125 | H38: 2 | I38: 6.088889254 | J38: 1090.12 | L38: 2.752 | M38: 3.351008923 | N38: 5.076280843 | O38: 4.424320955 | P38: 10.51321021 | Q38: 16.75066667 | R38: 0.1051321021 | S38: PB = 2.90"
A39: NW77-CG | B39: D | C39: =VLOOKUP(A39,[1]Calcs!$A$6:$L$897,12,FALSE) -> 84 | D39: 0.7188 | E39: =VLOOKUP(A39,[1]Calcs!$A$6:$L$897,7,FALSE) -> 4.3 | F39: 0.00671875 | G39: 125 | H39: 2 | I39: 6.088889254 | J39: 1250.16 | L39: 2.47968 | M39: 3.180893942 | N39: 4.818581913 | O39: 5.214486232 | P39: 11.30337549 | Q39: 17.63977778 | R39: 0.1130337549 | S39: PB = 2.90"
A40: NW77-CH | B40: D | C40: =VLOOKUP(A40,[1]Calcs!$A$6:$L$897,12,FALSE) -> 88 | D40: 0.7716 | E40: =VLOOKUP(A40,[1]Calcs!$A$6:$L$897,7,FALSE) -> 8.9 | F40: 0.01390625 | G40: 125 | H40: 2 | I40: 5.245517395 | J40: 1761.65 | L40: 2.7247 | M40: 3.334346395 | N40: 5.051039588 | O40: 6.662244829 | P40: 11.90776222 | Q40: 20.48138889 | R40: 0.1190776222 | S40: PB = 2.90"
A41: NWBA6-CA | B41: D | C41: =VLOOKUP(A41,[1]Calcs!$A$6:$L$897,12,FALSE) -> 79.99105407 | D41: 0.6658819137 | E41: =VLOOKUP(A41,[1]Calcs!$A$6:$L$897,7,FALSE) -> 84.68375 | F41: 0.1323183594 | G41: 300 | H41: 2 | I41: 10.74233481 | J41: 3700 | K41: 112 | L41: 2.8 | M41: 3.380106507 | N41: 5.120359362 | O41: 12.88134114 | P41: 23.62367595 | Q41: 32.22222222 | R41: 0.2362367595 | S41: PB = 2.95"
A42: NWBA6-CB | B42: D | C42: =VLOOKUP(A42,[1]Calcs!$A$6:$L$897,12,FALSE) -> 84.34285724 | D42: 0.7233257156 | E42: =VLOOKUP(A42,[1]Calcs!$A$6:$L$897,7,FALSE) -> 3.499999 | F42: 0.005468748437 | G42: 125 | H42: 2 | I42: 6.016600217 | J42: 1281 | L42: 3.37 | M42: 3.70822707 | N42: 5.617413284 | O42: 4.564454803 | P42: 10.58105502 | Q42: 17.81111111 | R42: 0.1058105502 | S42: PB = 2.91"
A43: NWBA6-CC | B43: D | C43: =VLOOKUP(A43,[1]Calcs!$A$6:$L$897,12,FALSE) -> 84.31924883 | D43: 0.7230140845 | E43: =VLOOKUP(A43,[1]Calcs!$A$6:$L$897,7,FALSE) -> 21.3 | F43: 0.03328125 | G43: 125 | H43: 2 | I43: 6.021577885 | J43: 2200 | L43: 1.91 | M43: 2.791695542 | N43: 4.229004138 | O43: 9.684808615 | P43: 15.7063865 | Q43: 22.91666667 | R43: 0.157063865 | S43: PB = 2.91"
A44: NWBA6-CD | B44: D | C44: =VLOOKUP(A44,[1]Calcs!$A$6:$L$897,12,FALSE) -> 84 | D44: 0.7188 | E44: =VLOOKUP(A44,[1]Calcs!$A$6:$L$897,7,FALSE) -> 4.8 | F44: 0.0075 | G44: 25 | H44: 2 | I44: 2.723034056 | J44: 840 | L44: 3.14 | M44: 3.57944912 | N44: 5.422333815 | O44: 3.373165443 | P44: 6.096199499 | Q44: 14.80555556 | R44: 0.06096199499 | S44: PB = 2.91"
A45: NWBA6-CE | B45: D | C45: =VLOOKUP(A45,[1]Calcs!$A$6:$L$897,12,FALSE) -> 84.10256413 | D45: 0.7201538465 | E45: =VLOOKUP(A45,[1]Calcs!$A$6:$L$897,7,FALSE) -> 3.899999 | F45: 0.006093748438 | G45: 125 | H45: 2 | I45: 6.067264329 | J45: 1146 | L45: 2.05 | M45: 2.892199855 | N45: 4.381253245 | O45: 5.338753031 | P45: 11.40601736 | Q45: 17.06111111 | R45: 0.1140601736 | S45: PB = 2.93"
A46: NWBA6-CF | B46: D | C46: =VLOOKUP(A46,[1]Calcs!$A$6:$L$897,12,FALSE) -> 83.10361495 | D46: 0.7069677174 | E46: =VLOOKUP(A46,[1]Calcs!$A$6:$L$897,7,FALSE) -> 38.884783 | F46: 0.06075747344 | G46: 125 | H46: 2 | I46: 6.277885735 | J46: 2587 | L46: 2.09 | M46: 2.920280124 | N46: 4.423790682 | O46: 10.71639666 | P46: 16.9942824 | Q46: 25.06666667 | R46: 0.169942824 | S46: PB = 2.95"
A47: NWBA6-CG | B47: D | C47: =VLOOKUP(A47,[1]Calcs!$A$6:$L$897,12,FALSE) -> 84 | D47: =0.0132*C47-0.39 -> 0.7188 | E47: =VLOOKUP(A47,[1]Calcs!$A$6:$L$897,7,FALSE) -> 3.2 | F47: =E47/640 -> 0.005 | G47: 25 | H47: 2 | I47: =(1.8*(1.1-D47)*G47^0.5)/(H47^0.33333) -> 2.723034056 | J47: 708 | L47: 3.31 | M47: =IF(B47="D",20.2*SQRT(L47/100),14.8*SQRT(L47/100)) -> 3.675067891 | N47: =IF(B47="D",30.6*SQRT(L47/100),29.4*SQRT(L47/100)) -> 5.567182052 | O47: =IF(J47>500,500/(60*M47)+(J47-500)/(60*N47),(J47/(60*M47))) -> 2.890228646 | P47: =IF((I47+O47)>5,(I47+O47),5) -> 5.613262702 | Q47: =IF(B47="D",+(G47+J47)/180+10,"N/A") -> 14.07222222 | R47: =IF(Q47>P47,P47*0.6/60,Q47*0.6/60) -> 0.05613262702 | S47: PB = 2.91"
A48: NWBA6-CH | B48: D | C48: =VLOOKUP(A48,[1]Calcs!$A$6:$L$897,12,FALSE) -> 84 | D48: 0.7188 | E48: =VLOOKUP(A48,[1]Calcs!$A$6:$L$897,7,FALSE) -> 3.9 | F48: 0.00609375 | G48: 25 | H48: 2 | I48: 2.723034056 | J48: 1217 | L48: 2.22 | M48: 3.009732214 | N48: 4.559297314 | O48: 5.389813535 | P48: 8.112847591 | Q48: 16.9 | R48: 0.08112847591 | S48: PB = 2.91"
A49: NWBC3A | B49: D | C49: =VLOOKUP(A49,[1]Calcs!$A$6:$L$897,12,FALSE) -> 93 | D49: 0.8376 | E49: 9.5 | F49: 0.01484375 | G49: 125 | H49: 2 | I49: 4.191302572 | J49: =1200-G49 -> 1075 | L49: 1.5 | M49: 2.47398464 | N49: 3.747719306 | O49: =IF(J49>500,500/(60*M49)+(J49-500)/(60*N49),(J49/(60*M49))) -> 5.925495987 | P49: =IF((I49+O49)>5,(I49+O49),5) -> 10.11679856 | Q49: =IF(B49="D",+(G49+J49)/180+10,"N/A") -> 16.66666667 | R49: =IF(Q49>P49,P49*0.6/60,Q49*0.6/60) -> 0.1011679856 | S49: PB = 2.87"
A50: NWBC3B | B50: D | C50: =VLOOKUP(A50,[1]Calcs!$A$6:$L$897,12,FALSE) -> 93 | D50: 0.8376 | E50: 6 | F50: 0.009375 | G50: 125 | H50: 2 | I50: 4.191302572 | J50: =980-G50 -> 855 | L50: 1.74 | M50: 2.664563004 | N50: 4.036417223 | O50: 4.593288557 | P50: 8.784591129 | Q50: 15.44444444 | R50: 0.08784591129 | S50: PB = 2.87"
A51: NWBC2-CA | B51: D | C51: =VLOOKUP(A51,[1]Calcs!$A$6:$L$897,12,FALSE) -> 82.70259067 | D51: 0.7016741969 | E51: =VLOOKUP(A51,[1]Calcs!$A$6:$L$897,7,FALSE) -> 19.3 | F51: 0.03015625 | G51: 120 | H51: 2.04 | I51: 6.192878291 | J51: 1465 | L51: 2.5 | M51: 3.193900437 | N51: 4.83828482 | O51: 5.933320748 | P51: 12.12619904 | Q51: 18.80555556 | R51: 0.1212619904 | S51: PB = 2.95"
A52: NWBC2-CB | B52: D | C52: =VLOOKUP(A52,[1]Calcs!$A$6:$L$897,12,FALSE) -> 84 | D52: 0.7188 | E52: =VLOOKUP(A52,[1]Calcs!$A$6:$L$897,7,FALSE) -> 20 | F52: 0.03125 | G52: 125 | H52: 2 | I52: 6.088889254 | J52: 1909 | L52: 2.46 | M52: 3.168246203 | N52: 4.799422465 | O52: 7.523216798 | P52: 13.61210605 | Q52: 21.3 | R52: 0.1361210605 | S52: PB = 2.93"
A53: NWBC2-CC | B53: D | C53: =VLOOKUP(A53,[1]Calcs!$A$6:$L$897,12,FALSE) -> 81.77320195 | D53: 0.6894062658 | E53: =VLOOKUP(A53,[1]Calcs!$A$6:$L$897,7,FALSE) -> 131.415056 | F53: 0.205336025 | G53: 125 | H53: 2 | I53: 6.558393956 | J53: 5601 | L53: 2.61 | M53: 3.263409873 | N53: 4.943581293 | O53: 19.75095043 | P53: 26.30934438 | Q53: 41.81111111 | R53: 0.2630934438 | S53: PB =3.03"
A54: NWBC2-CD | B54: D | C54: =VLOOKUP(A54,[1]Calcs!$A$6:$L$897,12,FALSE) -> 82.43941842 | D54: =0.0132*C54-0.39 -> 0.6982003231 | E54: =VLOOKUP(A54,[1]Calcs!$A$6:$L$897,7,FALSE) -> 6.19 | F54: =E54/640 -> 0.009671875 | G54: 320 | H54: 1.5 | I54: =(1.8*(1.1-D54)*G54^0.5)/(H54^0.33333) -> 11.30213728 | J54: 2321 | L54: 3.06 | M54: =IF(B54="D",20.2*SQRT(L54/100),14.8*SQRT(L54/100)) -> 3.533556848 | N54: =IF(B54="D",30.6*SQRT(L54/100),29.4*SQRT(L54/100)) -> 5.352813839 | O54: =IF(J54>500,500/(60*M54)+(J54-500)/(60*N54),(J54/(60*M54))) -> 8.028256477 | P54: =IF((I54+O54)>5,(I54+O54),5) -> 19.33039376 | Q54: =IF(B54="D",+(G54+J54)/180+10,"N/A") -> 24.67222222 | R54: =IF(Q54>P54,P54*0.6/60,Q54*0.6/60) -> 0.1933039376 | S54: PB = 2.95"
A56: For Developed basins V1 = 20.2 (Slope/100)0.5 and V2 = 30.6 (Slope/100)0.5
A57: For Existing basins V1 = 14.8 (Slope/100)0.5 and V2 = 29.4 (Slope/100)0.5
A58: If the Travel Length is greater than 500 ft then Tt = 500/(60 V1) + (Travel Length - 500)/(60 V2)
A59: If the Travel Length is less than 500 ft then Tt = Travel Length/(60 V2)
A60: Tc = Ti + Tt
